bitfinex-derivatives/quotes_SOLF0:USTF0_20251202
["timestamp","ask_amount","ask_price","bid_price","bid_amount"]
[1764702583833,11.43603435,139.94,139.92,3.26]
[1764702584032,6.47437264,139.94,139.92,3.26]
[1764702585132,11.43603435,139.94,139.92,3.26]
[1764702585325,0.04417264,139.94,139.92,3.26]
[1764702587036,0.04417264,139.94,139.93,9.92800292]
[1764702587235,0.04417264,139.94,139.93,3.26]
[1764702600338,4.96166171,139.99,139.94,3.26]
[1764702600535,1.24354553,140.01,139.95,3.26]
[1764702600835,6.20520724,140.01,139.95,3.26]
[1764702601037,12.63240724,140.01,139.95,3.26]
[1764702601236,6.20520724,140.01,139.95,3.26]
[1764702601443,6.20520724,140.01,139.98,3.26]
[1764702601643,4.96166171,140.03,139.98,3.26]
[1764702601839,66.12166171,140.05,140.0,3.26]
[1764702602036,61.16,140.05,140.02,3.26]
[1764702602438,61.16,140.05,140.01,3.31164379]
[1764702603250,6.4262,140.03,140.01,0.05164379]
[1764702606553,9.60893988,140.05,140.01,3.31164379]
[1764702606755,61.14,140.06,140.01,3.31164379]
[1764702606951,61.14,140.06,140.02,10.3]
[1764702607857,6.4256,140.04,140.02,10.3]
[1764702608259,66.10166171,140.06,140.02,10.3]
[1764702608464,61.14,140.06,140.02,10.3]
[1764702608962,6.4256,140.04,140.02,10.3]
[1764702609461,6.4253,140.05,140.02,10.3]
[1764702609664,66.10166171,140.06,140.02,10.3]
[1764702610256,4.64727817,140.03,140.02,10.3]
[1764702611556,4.64727817,140.03,140.01,0.05164379]
[1764702611856,104.62497817,140.01,139.94,3.23]
[1764702612052,109.46945918,140.01,139.94,3.23]
[1764702612562,6.4288,139.97,139.94,3.23]
[1764702612762,6.4288,139.97,139.96,0.04801269]
[1764702615751,67.5688,139.97,139.96,0.04801269]
[1764702616150,4.8961248,139.99,139.96,0.04801269]
[1764702616352,61.14,139.97,139.96,3.27801269]
[1764702616760,0.05164379,139.99,139.96,3.27801269]
[1764702616959,61.14,139.98,139.96,3.27801269]
[1764702617262,61.14,139.98,139.96,0.04801269]
[1764702617657,67.5686,139.98,139.96,0.04801269]
[1764702618066,61.14,139.97,139.96,0.04801269]
[1764702619761,6.4286,139.98,139.96,0.04801269]
[1764702619959,61.14,139.97,139.96,0.04801269]
[1764702621570,4.8961248,139.99,139.96,3.27801269]
[1764702621773,61.14,139.98,139.96,3.27801269]
[1764702622264,67.5684,139.98,139.96,3.27801269]
[1764702627970,61.14,139.98,139.96,3.27801269]
[1764702628473,0.05164379,139.99,139.96,3.27801269]
[1764702628474,0.05164379,139.99,139.96,4.69801269]
[1764702628670,0.05164379,139.99,139.97,3.23]
[1764702629365,0.05164379,139.99,139.97,9.87583101]
[1764702629677,0.05164379,139.99,139.98,3.23]
[1764702644890,3.02161967,139.99,139.96,6.6938437]
[1764702645096,3.02161967,139.99,139.96,0.04801269]
[1764702645999,6.4283,139.98,139.96,0.04801269]
[1764702646400,2.96997588,139.97,139.96,0.04801269]
[1764702647504,0.05164379,139.99,139.96,3.30801269]
[1764702651105,0.05164379,139.99,139.96,9.9538437]
[1764702651300,0.05164379,139.99,139.98,3.26]
[1764702661414,0.05164379,139.99,139.98,9.6883]
[1764702661615,4.83282366,140.03,139.99,3.26]
[1764702662618,4.83282366,140.03,140.0,0.05069696]
[1764702662818,4.83282366,140.03,140.01,3.26]
[1764702663518,4.83282366,140.04,140.01,3.26]
[1764702663718,4.83282366,140.03,140.01,3.26]
[1764702663918,4.83282366,140.04,140.01,3.26]
[1764702664120,4.83282366,140.03,140.01,3.26]
[1764702664319,7.80279954,140.05,140.01,3.26]
[1764702664517,4.83282366,140.04,140.01,3.26]
[1764702665818,4.83282366,140.05,140.01,3.26]
[1764702666019,4.83282366,140.04,140.01,3.26]
[1764702666221,4.83282366,140.05,140.01,3.26]
[1764702666517,4.83282366,140.04,140.01,3.26]
[1764702666717,4.83282366,140.05,140.01,3.26]
[1764702666910,4.83282366,140.04,140.01,3.26]
[1764702667116,4.83282366,140.05,140.01,3.26]
[1764702667414,4.83282366,140.04,140.01,3.26]
[1764702667614,4.83282366,140.05,140.01,3.26]
[1764702667814,4.83282366,140.04,140.01,3.26]
[1764702668014,4.83282366,140.05,140.01,3.26]
[1764702668216,4.83282366,140.04,140.01,3.26]
[1764702668520,4.83282366,140.05,140.01,3.26]
[1764702668721,4.83282366,140.04,140.01,3.26]
[1764702669020,4.83282366,140.05,140.01,3.26]
[1764702669221,4.83282366,140.04,140.01,3.26]
[1764702669424,4.83282366,140.05,140.01,3.26]
[1764702669622,4.83282366,140.04,140.01,3.26]
[1764702669923,4.83282366,140.05,140.02,3.23]
[1764702670115,13.12990588,140.06,140.02,3.23]
[1764702670315,17.96272954,140.06,140.02,3.23]
[1764702670522,3.73523,140.06,140.02,3.23]
[1764702670728,8.56805366,140.06,140.02,3.23]
[1764702671023,3.73523,140.06,140.02,3.23]
[1764702671223,8.56805366,140.06,140.02,3.23]
[1764702671424,3.73523,140.06,140.02,3.23]
[1764702671610,8.56805366,140.06,140.02,3.23]
[1764702671814,13.12980588,140.06,140.02,3.23]
[1764702672014,17.96262954,140.06,140.02,3.23]
[1764702672221,13.12980588,140.06,140.02,3.23]
[1764702672426,17.96262954,140.06,140.02,3.23]
[1764702672724,13.12980588,140.06,140.02,3.23]
[1764702672923,17.96262954,140.06,140.02,3.23]
[1764702673123,13.12980588,140.06,140.02,3.23]
[1764702673324,4.83282366,140.05,140.02,3.23]
[1764702678327,14.99265366,140.06,140.02,3.23]
[1764702678826,6.4252,140.05,140.02,3.23]
[1764702680031,6.4257,140.04,140.02,3.23]
[1764702680329,7.80279954,140.05,140.0,3.28069696]
[1764702680931,14.22799954,140.05,140.0,3.28069696]
[1764702682125,3.73523,140.06,140.02,3.23]
[1764702682331,8.56805366,140.06,140.02,3.23]
[1764702682522,3.73523,140.06,140.02,3.23]
[1764702682726,3.73523,140.06,140.03,3.23]
[1764702682932,3.73523,140.06,140.03,3.28073955]
[1764702687028,3.73523,140.06,140.03,0.05073955]
[1764702687228,6.70520588,140.06,140.03,0.05073955]
[1764702687428,6.4252,140.05,140.03,0.05073955]
[1764702688430,11.54591315,140.06,140.03,0.05073955]
[1764702688636,6.70520588,140.06,140.03,0.05073955]
[1764702688835,11.54591315,140.06,140.03,0.05073955]
[1764702689035,6.4251,140.05,140.03,0.05073955]
[1764702691339,11.26580727,140.05,140.03,0.05073955]
[1764702693342,4.84070727,140.04,140.03,0.05073955]
[1764702695340,4.84070727,140.04,140.03,3.24073955]
[1764702695540,4.84070727,140.05,140.03,3.24073955]
[1764702695839,4.84070727,140.04,140.03,3.24073955]
[1764702696039,4.84070727,140.05,140.03,3.24073955]
[1764702696240,4.84070727,140.04,140.03,3.24073955]
[1764702696429,4.84070727,140.05,140.03,3.24073955]
[1764702696635,4.84070727,140.04,140.03,3.24073955]
[1764702696834,4.84070727,140.05,140.03,3.24073955]
[1764702697034,4.84070727,140.04,140.03,3.24073955]
[1764702697234,4.84070727,140.05,140.03,3.24073955]
[1764702697442,4.84070727,140.04,140.03,3.24073955]
[1764702697644,4.84070727,140.05,140.03,0.05073955]
[1764702697840,4.84070727,140.04,140.03,0.05073955]
[1764702702950,4.85891461,140.04,140.03,0.05073955]
[1764702703848,4.85891461,140.04,140.03,3.10073955]
[1764702704051,3.73523,140.06,140.04,3.05]
[1764702704349,3.73523,140.06,140.05,3.05]
[1764702704738,8.59414461,140.06,140.05,3.05]
[1764702704938,3.73523,140.06,140.05,3.05]
[1764702705650,8.59414461,140.06,140.05,3.05]
[1764702705853,3.73523,140.06,140.04,9.71508226]
[1764702706152,8.59414461,140.06,140.04,9.71508226]
[1764702706353,10.15993,140.06,140.04,9.71508226]
[1764702706555,15.01884461,140.06,140.04,9.71508226]
[1764702706751,10.15993,140.06,140.04,9.71508226]
[1764702706951,8.59414461,140.06,140.04,9.71508226]
[1764702707148,3.73523,140.06,140.04,9.71508226]
[1764702707351,8.59414461,140.06,140.04,6.66508226]
[1764702707554,3.73523,140.06,140.04,6.66508226]
[1764702707750,8.59414461,140.06,140.04,6.66508226]
[1764702708050,3.73523,140.06,140.04,6.66508226]
[1764702708352,4.85891461,140.05,140.03,0.05073955]
[1764702708553,4.85891461,140.04,140.03,0.05073955]
[1764702708848,4.85891461,140.05,140.03,0.05073955]
[1764702709056,4.85891461,140.04,140.03,0.05073955]
[1764702709243,4.85891461,140.05,140.03,0.05073955]
[1764702709448,4.85891461,140.04,140.03,0.05073955]
[1764702709647,4.85891461,140.05,140.03,0.05073955]
[1764702709847,4.85891461,140.04,140.03,0.05073955]
[1764702710047,4.85891461,140.05,140.03,0.05073955]
[1764702710247,4.85891461,140.04,140.03,0.05073955]
[1764702710553,4.85891461,140.05,140.03,0.05073955]
[1764702710753,4.85891461,140.04,140.03,0.05073955]
[1764702710956,4.85891461,140.05,140.03,0.05073955]
[1764702711247,4.85891461,140.04,140.03,0.05073955]
[1764702711452,3.73523,140.06,140.03,0.05073955]
[1764702711453,4.85891461,140.05,140.03,0.05073955]
[1764702711753,4.85891461,140.04,140.03,0.05073955]
[1764702711953,4.85891461,140.05,140.03,0.05073955]
[1764702712153,4.85891461,140.04,140.03,0.05073955]
[1764702712353,4.85891461,140.05,140.03,0.05073955]
[1764702712554,4.85891461,140.04,140.03,0.05073955]
[1764702712755,4.85891461,140.05,140.03,0.05073955]
[1764702712947,4.85891461,140.04,140.03,0.05073955]
[1764702713151,4.85891461,140.05,140.03,0.05073955]
[1764702713352,4.85891461,140.04,140.03,0.05073955]
[1764702713545,4.85891461,140.05,140.03,0.05073955]
[1764702713748,4.85891461,140.04,140.03,0.05073955]
[1764702713955,4.85891461,140.05,140.03,0.05073955]
[1764702714143,4.85891461,140.04,140.03,0.05073955]
[1764702714342,4.85891461,140.05,140.03,0.05073955]
[1764702714653,4.85891461,140.04,140.03,0.05073955]
[1764702720358,4.85891461,140.04,140.03,9.76854771]
[1764702720552,3.73523,140.06,140.04,3.05]
[1764702720754,3.73523,140.06,140.04,6.66818718]
[1764702721056,1.86,140.05,140.04,6.66818718]
[1764702721253,1.86,140.05,140.03,6.71892673]
[1764702722453,1.86,140.05,140.03,0.05073955]
[1764702726663,1.86,140.04,140.03,0.05073955]
[1764702729164,1.86,140.04,140.0,14.62818718]
[1764702729165,6.4261,140.03,140.0,14.62818718]
[1764702729469,1.82,140.02,140.0,7.96]
[1764702730262,1.87073955,140.02,140.0,8.01005697]
[1764702734173,0.05073955,140.02,140.01,3.05]
[1764702734674,0.05073955,140.02,140.01,9.71818718]
[1764702735268,0.05073955,140.02,140.01,6.66818718]
[1764702735473,0.05073955,140.02,140.01,9.71818718]
[1764702740771,0.05073955,140.02,140.01,3.05]
[1764702740973,0.05073955,140.02,140.01,9.71818718]
[1764702743984,0.05073955,140.02,140.01,3.05]
[1764702744285,0.05073955,140.02,140.01,9.71818718]
[1764702749394,0.05073955,140.02,140.01,3.05]
[1764702749584,0.05073955,140.02,140.01,9.7125929]
[1764702751097,0.05073955,140.02,140.01,3.05]
[1764702752288,1.87073955,140.02,140.01,6.6649365]
[1764702752490,1.82,140.01,140.0,8.01005697]
[1764702753393,8.2469,140.01,140.0,8.01005697]
[1764702753593,1.82,140.01,140.0,8.01005697]
[1764702754596,1.82,140.01,140.0,0.05005697]
[1764702761896,3.73523,140.06,140.01,3.26]
[1764702762102,3.73523,140.06,140.03,3.26]
[1764702762304,3.73523,140.06,140.04,3.26]
[1764702762906,3.73523,140.06,140.04,3.31273749]
[1764702764205,3.73523,140.06,140.05,3.26]
[1764702765308,3.73523,140.06,140.05,9.91508795]
[1764702767204,3.73523,140.06,140.05,6.22805055]
[1764702768012,6.4217,140.13,140.07,3.26]
[1764702768213,6.4217,140.13,140.09,3.30735326]
[1764702768214,9.4017,140.13,140.09,3.30735326]
[1764702768708,2.98,140.13,140.09,3.30735326]
[1764702775405,2.98,140.13,140.1,3.26]
[1764702780224,2.98,140.13,140.09,3.30735326]
[1764702780423,2.98,140.13,140.09,0.04735326]
[1764702780723,2.98,140.12,140.09,0.04735326]
[1764702783823,5.94805055,140.12,140.09,0.04735326]
[1764702784027,2.98,140.11,140.09,0.04735326]
[1764702784921,5.94805055,140.1,140.09,0.04735326]
[1764702785219,5.94805055,140.1,139.99,13.3019975]
[1764702785220,2.98,140.09,139.99,6.60972194]
[1764702785426,2.98,140.04,139.99,3.26]
[1764702786126,0.04735326,140.03,140.0,3.31452154]
[1764702786422,3.02735326,140.03,140.0,3.31452154]
[1764702790123,0.04735326,140.03,140.0,3.31452154]
[1764702792330,0.04735326,140.03,140.02,3.08]
[1764702795136,3.10735326,140.03,140.01,12.33]
[1764702795430,3.10735326,140.03,140.01,9.25]
[1764702795835,3.10735326,140.03,140.01,18.53]
[1764702796437,3.10735326,140.03,140.01,21.61]
[1764702797528,3.10735326,140.03,140.01,18.53]
[1764702797937,3.06,140.02,140.01,18.53]
[1764702800037,3.06,140.02,140.01,16.07267269]
[1764702800538,0.04735326,140.03,140.02,3.08]
[1764702805442,9.4843,140.07,140.02,3.08]
[1764702805443,3.06,140.07,140.02,3.08]
[1764702806238,67.10805055,140.09,140.02,3.08]
[1764702806437,3.06,140.08,140.04,3.13315717]
[1764702806639,3.06,140.08,140.04,0.05315717]
[1764702806640,3.06,140.07,140.04,0.05315717]
[1764702807140,3.06,140.07,140.04,3.13315717]
[1764702808334,6.02805055,140.09,140.04,3.13315717]
[1764702808642,3.06,140.08,140.04,3.13315717]
[1764702812246,61.08,140.11,140.04,3.13315717]
[1764702812247,6.4226,140.11,140.04,3.13315717]
[1764702812551,3.06,140.12,140.06,3.08]
[1764702812743,3.06,140.12,140.08,3.1314085]
[1764702814042,3.15,140.08,140.04,3.28]
[1764702814848,3.15,140.06,140.04,3.28]
[1764702815147,3.2014085,140.06,140.04,0.04935321]
[1764702816250,9.6262085,140.06,140.04,0.04935321]
[1764702816443,3.15,140.05,140.04,0.04935321]
[1764702818055,6.4762085,140.06,140.04,0.04935321]
[1764702818444,9.6262085,140.06,140.04,0.04935321]
[1764702818649,3.15,140.05,140.04,0.04935321]
[1764702819454,6.4762085,140.06,140.04,0.04935321]
[1764702820155,9.6562085,140.06,140.04,0.04935321]
[1764702822454,9.6562085,140.06,140.04,3.32935321]
[1764702822760,0.0514085,140.06,140.04,3.32935321]
[1764702824752,9.6561085,140.06,140.04,0.04935321]
[1764702824947,9.6561085,140.06,140.04,8.79935321]
[1764702825561,3.18,140.05,140.04,8.79935321]
[1764702826959,9.6561085,140.06,140.04,8.79935321]
[1764702829261,9.6051,140.05,140.04,8.79935321]
[1764702829756,3.18,140.05,140.04,8.79935321]
[1764702831564,9.6051,140.05,140.04,8.79935321]
[1764702832166,0.0514085,140.06,140.05,3.28]
[1764702832970,0.0514085,140.06,140.04,8.79935321]
[1764702833170,0.0514085,140.06,140.04,12.07935321]
[1764702833562,6.4760085,140.06,140.04,12.07935321]
[1764702836466,6.4760085,140.06,140.05,3.28]
[1764702836663,0.0514085,140.06,140.05,3.28]
[1764702837060,3.18,140.1,140.05,3.28]
[1764702837264,3.18,140.1,140.07,3.28]
[1764702837464,61.08,140.12,140.07,3.28]
[1764702837670,3.18,140.12,140.07,3.28]
[1764702837968,64.26,140.12,140.08,3.28]
[1764702838171,64.26,140.12,140.09,0.04916806]
[1764702838367,64.26,140.12,140.09,3.32916806]
[1764702839672,3.18,140.1,140.09,0.04916806]
[1764702840271,9.6028,140.1,140.09,0.04916806]
[1764702840581,3.18,140.1,140.05,11.26]
[1764702840982,6.4246,140.07,140.05,11.26]
[1764702841281,3.18,140.07,140.05,11.26]
[1764702841572,3.22916806,140.07,140.05,11.30669573]
[1764702842481,6.4246,140.06,140.05,11.30669573]
[1764702842683,3.22916806,140.07,140.05,14.58669573]
[1764702843676,9.65336806,140.07,140.05,14.58669573]
[1764702844283,9.65336806,140.07,140.05,23.63669573]
[1764702846985,9.6046,140.06,140.05,20.35669573]
[1764702847670,3.18,140.02,140.0,6.63669425]
[1764702848076,3.18,140.02,140.0,9.91669425]
[1764702848274,3.18,140.02,140.0,3.28]
[1764702848673,9.65435044,140.02,140.0,3.32717827]
[1764702849481,9.65435044,140.02,140.0,0.04717827]
[1764702855594,3.19,140.01,140.0,0.04717827]
[1764702856792,6.47435044,140.02,140.0,0.04717827]
[1764702857094,9.66435044,140.02,140.0,3.26717827]
[1764702857395,9.66435044,140.02,140.0,0.04717827]
[1764702858696,3.19,140.01,140.0,0.04717827]
[1764702858994,9.66435044,140.02,140.0,0.04717827]
[1764702861500,3.23775044,140.02,140.0,3.26717827]
[1764702862995,0.04775044,140.02,140.0,3.26717827]
[1764702865496,3.23775044,140.02,140.0,3.26717827]
[1764702866193,0.04775044,140.02,140.0,3.26717827]
[1764702869600,3.19,140.08,140.01,3.22]
[1764702869796,3.19,140.08,140.02,3.22]
[1764702870398,3.19,140.08,140.03,3.22]
[1764702870698,3.19,140.08,140.05,3.22]
[1764702870699,0.04745161,140.07,140.05,3.22]
[1764702873002,3.19,140.11,140.06,3.22]
[1764702873395,3.19,140.11,140.07,3.22]
[1764702874101,3.19,140.11,140.08,3.2623274]
[1764702875499,3.11,140.12,140.08,3.2623274]
[1764702875700,9.5319,140.12,140.08,3.2623274]
[1764702876099,3.11,140.12,140.08,3.2623274]
[1764702876403,3.11,140.13,140.08,3.2623274]
[1764702878006,24.70024742,140.16,140.1,3.21]
[1764702878206,3.11,140.15,140.12,3.26138231]
[1764702878809,2.99,140.16,140.12,3.26138231]
[1764702881402,6.4206,140.15,140.12,3.26138231]
[1764702881608,2.99,140.14,140.12,0.05138231]
[1764702883205,2.99,140.14,140.12,3.17138231]
[1764702884411,2.99,140.14,140.12,0.05138231]
[1764702886603,2.99,140.14,140.12,3.17138231]
[1764702887499,2.99,140.16,140.12,3.17138231]
[1764702890914,2.99,140.14,140.12,0.05138231]
[1764702891209,2.96558056,140.13,140.12,0.05138231]
[1764702891407,2.99,140.13,140.12,0.05138231]
[1764702895012,5.95558056,140.15,140.12,3.17138231]
[1764702895216,2.99,140.14,140.12,0.05138231]
[1764702897819,2.99,140.14,140.12,3.17138231]
[1764702898115,2.99,140.14,140.12,0.05138231]
[1764702900617,2.99,140.17,140.12,3.17138231]
[1764702900813,2.99,140.2,140.13,3.12]
[1764702901016,2.99,140.2,140.16,3.12]
[1764702902611,2.99,140.19,140.16,3.12]
[1764702909126,9.4087,140.19,140.16,3.12]
[1764702909324,102.8842,140.18,140.15,0.04679985]
[1764702909530,3.03,140.16,140.15,0.04679985]
[1764702910121,3.03,140.16,140.1,3.21]
[1764702910322,3.03,140.12,140.09,9.38]
[1764702910630,3.03,140.1,140.09,9.38]
[1764702911422,5.99558056,140.16,140.1,3.21]
[1764702912020,3.03,140.15,140.1,3.21]
[1764702912420,3.03,140.15,140.11,3.25951595]
[1764702912628,3.03,140.14,140.11,3.25951595]
[1764702916736,9.38568056,140.16,140.11,3.25951595]
[1764702916737,5.99558056,140.16,140.11,3.25951595]
[1764702917031,9.38508056,140.18,140.12,3.21]
[1764702917238,3.03,140.17,140.13,3.21]
[1764702917538,3.03,140.16,140.14,3.25674791]
[1764702918643,3.03,140.17,140.14,3.25674791]
[1764702919144,2.96558056,140.18,140.14,3.25674791]
[1764702919440,5.99558056,140.18,140.14,3.25674791]
[1764702919836,3.03,140.21,140.16,3.21]
[1764702920030,3.03,140.21,140.18,3.21]
[1764702922440,3.03,140.24,140.19,3.21]
[1764702922631,3.03,140.24,140.2,3.26136376]
[1764702923033,3.03,140.22,140.2,0.05136376]
[1764702925345,9.4473,140.22,140.2,0.05136376]
[1764702927038,9.4467,140.24,140.2,3.26136376]
[1764702927239,3.03,140.23,140.2,3.26136376]
[1764702928140,3.03,140.22,140.2,3.26136376]
[1764702929948,3.03,140.22,140.2,0.05136376]
[1764702932446,3.03,140.22,140.2,3.26136376]
[1764702933548,3.03,140.22,140.2,0.05136376]
[1764702939647,3.03,140.22,140.2,11.40136376]
[1764702939848,2.96,140.23,140.21,3.19]
[1764702940048,2.96,140.23,140.2,11.40136376]
[1764702940248,2.96,140.23,140.2,14.59136376]
[1764702940451,2.96,140.23,140.2,11.40136376]
[1764702946653,2.96,140.21,140.2,11.40136376]
[1764702949660,9.3777,140.21,140.2,11.40136376]
[1764702950357,2.96,140.22,140.2,14.59136376]
[1764702950563,2.96,140.22,140.2,11.40136376]
[1764702952263,9.3773,140.22,140.2,11.40136376]
[1764702954867,6.4168,140.24,140.21,3.19]
[1764702955166,2.96,140.23,140.2,14.59136376]
[1764702956065,2.96,140.22,140.2,14.59136376]
[1764702959661,7.65749407,140.25,140.21,3.19]
[1764702959965,2.96,140.29,140.22,3.19]
[1764702960165,2.96,140.29,140.25,3.19]
[1764702960975,64.02,140.32,140.26,3.19]
[1764702961268,64.02,140.32,140.28,3.24327992]
[1764702962168,61.06,140.32,140.3,3.19]
[1764702962372,6.4126,140.33,140.3,3.19]
[1764702962776,9.3726,140.33,140.3,3.19]
[1764702964272,2.96,140.33,140.3,3.19]
[1764702964972,2.96,140.36,140.3,3.19]
[1764702965277,2.96,140.34,140.32,0.04570546]
[1764702965573,9.3719,140.34,140.32,0.04570546]
[1764702965971,9.3719,140.34,140.32,10.16570546]
[1764702966476,2.96,140.33,140.32,10.16570546]
[1764702967073,2.96,140.35,140.32,13.35570546]
[1764702967264,5.86563079,140.37,140.32,10.16570546]
[1764702967265,2.96,140.33,140.32,10.16570546]
[1764702969175,64.33,140.34,140.32,10.16570546]
[1764702969768,3.27,140.34,140.32,10.16570546]
[1764702969967,64.33,140.34,140.32,10.16570546]
[1764702971071,3.27,140.34,140.32,10.16570546]
[1764702971272,64.33,140.34,140.32,10.16570546]
[1764702971571,3.27,140.34,140.32,10.16570546]
[1764702971776,64.33,140.34,140.32,10.16570546]
[1764702972974,3.27,140.34,140.32,10.16570546]
[1764702973572,70.7216,140.35,140.32,13.18570546]
[1764702975374,3.27,140.34,140.32,13.18570546]
[1764702975977,3.27,140.34,140.32,22.07570546]
[1764702976279,70.7216,140.35,140.32,22.07570546]
[1764702977370,9.6816,140.35,140.32,22.07570546]
[1764702977576,70.7216,140.35,140.32,22.07570546]
[1764702977777,3.27,140.38,140.33,3.02]
[1764702978084,3.27,140.36,140.33,3.02]
[1764702978983,7.89521019,140.36,140.33,3.02]
[1764702979377,9.681,140.36,140.33,3.02]
[1764702981578,3.27,140.36,140.33,3.02]
[1764702982376,3.27,140.36,140.32,22.07570546]
[1764702982574,3.27,140.35,140.32,22.07570546]
[1764702982983,3.27,140.35,140.33,3.02]
[1764702983285,9.681,140.36,140.33,3.02]
[1764702983975,7.89521019,140.35,140.32,19.05570546]
[1764702984181,3.27,140.34,140.32,22.07570546]
[1764702984679,3.27,140.32,140.27,3.02]
[1764702984982,9.6837,140.3,140.27,3.02]
[1764702985380,3.27,140.3,140.27,3.02]
[1764702985573,3.27,140.3,140.21,11.24514438]
[1764702985574,3.27,140.28,140.21,3.02]
[1764702985776,3.27,140.25,140.23,0.05280565]
[1764702986182,70.726,140.25,140.23,0.05280565]
[1764702986383,3.27,140.24,140.23,0.05280565]
[1764702988478,7.89521019,140.24,140.23,0.05280565]
[1764702988679,4.62521019,140.24,140.23,0.05280565]
[1764702989186,7.89521019,140.24,140.23,0.05280565]
[1764702991389,0.04440527,140.26,140.23,3.07280565]
[1764702991883,3.31440527,140.26,140.23,3.07280565]
[1764702992089,6.416,140.25,140.23,3.07280565]
[1764702992290,3.31440527,140.26,140.23,3.07280565]
[1764702992685,9.73000527,140.26,140.23,3.07280565]
[1764702993184,6.4161,140.25,140.23,0.05280565]
[1764702993989,9.5961,140.25,140.23,0.05280565]
[1764702994186,0.04440527,140.26,140.23,3.22280565]
[1764702994387,3.00379065,140.26,140.23,3.22280565]
[1764702995187,0.04440527,140.26,140.23,3.22280565]
[1764702995493,3.18,140.32,140.25,3.17]
[1764702995790,3.18,140.32,140.26,3.17]
[1764702996289,3.18,140.32,140.29,3.17]
[1764702998191,61.06,140.34,140.29,3.17]
[1764702998386,2.95938538,140.34,140.29,3.17]
[1764702998584,6.13938538,140.34,140.29,3.17]
[1764703000493,2.95938538,140.32,140.29,3.17]
[1764703000694,6.10938538,140.32,140.29,3.17]
[1764703000895,3.15,140.31,140.28,0.05202662]
[1764703001098,2.95938538,140.3,140.28,0.05202662]
[1764703001401,6.10938538,140.3,140.28,0.05202662]
[1764703002591,6.10938538,140.32,140.28,3.29202662]
[1764703002895,3.15,140.31,140.28,3.29202662]
[1764703007795,6.10938538,140.32,140.28,3.29202662]
[1764703010192,3.15,140.32,140.28,3.29202662]
[1764703010890,2.95938538,140.32,140.28,3.29202662]
[1764703011094,6.10938538,140.32,140.28,3.29202662]
[1764703011291,3.15,140.31,140.28,0.05202662]
[1764703012302,3.15,140.3,140.28,0.05202662]
[1764703013706,9.5637,140.3,140.28,0.05202662]
[1764703014200,3.15,140.3,140.28,3.29202662]
[1764703014396,9.563,140.32,140.28,3.29202662]
[1764703014596,3.15,140.31,140.28,3.29202662]
[1764703016507,9.5632,140.31,140.28,3.29202662]
[1764703016706,3.15,140.3,140.28,3.29202662]
[1764703017808,12.52348538,140.29,140.28,0.05202662]
[1764703018003,3.15,140.28,140.23,9.57]
[1764703018199,6.10938538,140.25,140.23,9.57]
[1764703018401,12.52538538,140.25,140.23,9.57]
[1764703018600,3.15,140.24,140.23,9.57]
[1764703019106,6.4166,140.24,140.22,0.0472325]
[1764703019304,3.15,140.22,140.17,17.61993419]
[1764703019499,6.10938538,140.19,140.17,11.0]
[1764703019906,63.99938538,140.21,140.17,11.0]
[1764703020107,3.15,140.2,140.17,11.0]
[1764703020308,3.19570824,140.2,140.17,11.05335169]
[1764703021908,6.10938538,140.19,140.17,0.05335169]
[1764703024822,3.19570824,140.2,140.17,3.29335169]
[1764703025511,9.61400824,140.2,140.17,3.29335169]
[1764703025920,3.19570824,140.2,140.17,0.05335169]
[1764703026309,0.04570824,140.2,140.17,3.29335169]
[1764703026712,9.61400824,140.2,140.17,3.29335169]
[1764703026905,3.19570824,140.2,140.17,3.29335169]
[1764703029716,3.21,140.18,140.17,0.05335169]
[1764703033522,0.04570824,140.2,140.18,3.27]
[1764703033723,3.25570824,140.2,140.17,3.32335169]
[1764703034225,3.25570824,140.2,140.17,0.05335169]